{"text_format":"1","workbook":"xlsx","n_sheets":3,"sheets":["Instructions","Summary","Data"],"not_rendered":{"charts":0,"images":2,"macros":1,"external_links":1,"defined_names":6,"comments":0,"pivot_tables":0},"unopened":[],"bounds":{"document_bytes":16777216,"sheet_cells":100000,"rows_first":2000,"rows_last":500,"rows_between":2000,"halvings":0,"cell_chars":16384,"cell_head_chars":4096},"cells_cut":0,"cells_raw":0,"read":"whole","date_system":"1900"}

{"sheet":"Instructions","index":0,"n_rows":24,"n_cols":7,"rows_kept":24,"cut":false,"hidden":false,"merged":[]}
[null,null,null,null,null,null,{"$f":"Summary!PayItemFile","v":"N:\\CFL-DPIT\\Excel\\PayItems24.csv"}]
[null,"Instructions"]
[null,1,"On the Summary Tab, click the \"Browse for Pay Item\" button, hit the \"Browse for Pay Item File\" in the dialog box and browse to N:\\CFL-DPIT\\Excel\\PayItems24.csv and select \"Open\" or if you downloaded the file off the network browse to the location to where it was saved."]
[null,null,"Click the \"Return to Excel\" button."]
[]
[null,2,"On the Summary Tab, click the \"Add/Remove Pay Items\" button."]
[null,null,"Pay items are broken out by pay item categories.  Choose the desired pay item category."]
[null,null,"Select the desired pay item and select \"Add Item\".  Repeat for all required pay items."]
[null,null,"To remove pay items click the \"Delete a pay item already placed in sheet\" button and select the desired pay item and click the \"delete item\" button.  Click the \"Close\" button to close the dialog box."]
[null,null,"When all desired pay items have been added click the \"Close\" button."]
[]
[null,3,"Add station ranges and quantities.  Add and remove schedules to tables using the buttons at the top of the Summary tab.  Hide and unhide rows to tables using the buttons at the top of the Summary tab.  Merge and center title over the entire table width."]
[]
[null,4,"Using the Engineer's Estimate Manual (https://highways.dot.gov/federal-lands/estimates/cfl-estimate-manual), determine the correct rounding % and round up values for each item."]
[]
[]
[]
[]
[]
[]
[]
[]
[null,null,"The Bid schedule and allowance quantities will be automatically calculated at the bottom but should not be included in tabulation sheets."]
[null,5,"DO NOT MANUALLY ADD ANY COLUMNS TO THE SPREADSHEET."]

{"sheet":"Summary","index":1,"n_rows":117,"n_cols":12,"rows_kept":117,"cut":false,"hidden":false,"merged":[[2,11,2,14],[39,2,39,6],[113,0,113,2],[5,3,5,6],[6,2,8,2],[6,3,8,5],[6,6,8,6],[108,0,108,2],[70,2,70,6],[101,2,101,6],[103,0,103,2],[7,11,7,15],[4,3,4,6],[6,8,8,8],[5,11,6,15]]}
[null,null,null,null,null,"Pay Item File:","N:\\CFL-DPIT\\Excel\\PayItems24.csv"]
[null,null,null,null,null,null,null,"Leave this column HIDDEN!!! Do not delete"]
["Check Column - do not delete",null,null,null,null,null,null,{"$f":"IF(ISERROR(VLOOKUP(H2,Data!$A:$C,2,FALSE)),\"\",VLOOKUP(H2,Data!$A:$C,2,FALSE))","v":""},null,null,null,"Do not manually add columns to the spreadsheet.  The macro will become inoperable if columns are manually added to the left of the remarks column."]
[]
[null,null,null,"FENCE AND GATE SUMMARY",null,null,null,null,null,null,null,"<---------------- Merge and Center the Title over the entire table"]
[null,null,null,"Item Number",null,null,null,{"$f":"H2","v":"Leave this column HIDDEN!!! Do not delete"}]
[null,null,"Schedule","Station to Station",null,null,"Side",{"$f":"IF(ISBLANK(H2),\"\",LOOKUP(H2,'[1]FP24 Pay Items'!$B$1:$B$65536,'[1]FP24 Pay Items'!$E$1:$E$65536))","v":"FUNDING RECLASSIFICATION"},"Remarks"]
[null,null,null,null,null,null,null,"(Supplemental Description)",null,null,null,"<---------HIDE (DO NOT DELETE) THIS ROW IF NO SUPPLEMENTAL DESCRIPTIONS"]
[null,null,null,null,null,null,null,{"$f":"IF(ISBLANK(H2),\"\",LOOKUP(H2,'[1]FP24 Pay Items'!$B$1:$B$65536,'[1]FP24 Pay Items'!$F$1:$F$65536))","v":"LPSM"}]
[]
[]
[]
[]
[]
[]
[]
[]
[]
[]
[]
[]
[]
[]
[]
[]
[]
[]
[]
[]
[]
[]
[]
[]
[]
[]
[]
[]
[]
[]
[null,null,{"$f":"IF(Data!$D$2>1,IF(Data!$G$2>1,\"SCHEDULE A TOTALS\",\"TOTALS\"),IF(Data!$G$2>1,\"SCHEDULE A TOTAL\",\"TOTAL\"))","v":"TOTAL"},null,null,null,null,{"$f":"IF(H$9=\"LPSM\",\"ALL\",SUM(H$10:H$39))","v":"ALL"}]
[]
[]
[]
[]
[]
[]
[]
[]
[]
[]
[]
[]
[]
[]
[]
[]
[]
[]
[]
[]
[]
[]
[]
[]
[]
[]
[]
[]
[]
[]
[null,null,{"$f":"IF(Data!D2>1,IF(Data!G2>1,\"SCHEDULE B TOTALS\",\"TOTALS\"),IF(Data!G2>1,\"SCHEDULE B TOTAL\",\"TOTAL\"))","v":"TOTAL"},null,null,null,null,{"$f":"IF(H$9=\"LPSM\",\"ALL\",SUM(H$41:H$70)+H$40)","v":"ALL"}]
[]
[]
[]
[]
[]
[]
[]
[]
[]
[]
[]
[]
[]
[]
[]
[]
[]
[]
[]
[]
[]
[]
[]
[]
[]
[]
[]
[]
[]
[]
[null,null,{"$f":"IF(Data!$D$2>1,IF(Data!$G$2>1,\"SCHEDULE C TOTALS\",\"TOTALS\"),IF(Data!$G$2>1,\"SCHEDULE C TOTAL\",\"TOTAL\"))","v":"TOTAL"},null,null,null,null,{"$f":"IF(H$9=\"LPSM\",\"ALL\",SUM(H$72:H$101)+H$71)","v":"ALL"}]
[]
[{"$f":"IF(Data!$G$2=1,\" \",IF(Data!$G$2=2,\"Schedule A\",IF(Data!$G$2=3,\"Schedule A\")))","v":" "},null,null,"Rounding %"]
[null,null,null,"Round up"]
[null,null,null,"Bid Schedule",null,null,null,{"$f":"IF(H$9=\"each\",H$40,IF(H$9=\"LPSM\",\"LPSM\",IF(H$105=0,ROUND((H$40*(1+H$104)),0),CEILING(H$40*(1+H$104),H$105))))","v":"LPSM"}]
[null,null,null,"Allowance",null,null,null,{"$f":"IF(H$9=\"LPSM\",\"--\",H$106-H$40)","v":"--"}]
[]
[{"$f":"IF(Data!$G$2=1,\" \",IF(Data!$G$2=2,\"Schedule B\",IF(Data!$G$2=3,\"Schedule B\")))","v":" "},null,null,{"$f":"IF(Data!$G$2=1, \"\", \"Rounding %\")","v":""}]
[null,null,null,{"$f":"IF(Data!$G$2=1, \" \", \"Round up\")","v":" "}]
[null,null,null,{"$f":"IF(Data!$G$2=1, \" \", \"Bid Schedule\")","v":" "},null,null,null,{"$f":"IF(Data!$G$2=1,\"\",IF(H$9=\"each\",H$71,IF(H$9=\"LPSM\",\"LPSM\",IF(H$110=0,ROUND((H$71*(1+H$109)),0),CEILING(H$71*(1+H$109),H$110)))))","v":""}]
[null,null,null,{"$f":"IF(Data!$G$2=1, \" \", \"Allowance\")","v":" "},null,null,null,{"$f":"IF(Data!$G$2=1,\"\",IF(H$9=\"LPSM\",\"--\",H$111-H$71))","v":""}]
[]
[{"$f":"IF(Data!$G$2=1,\" \",IF(Data!$G$2=2,\" \",IF(Data!$G$2=3,\"Schedule C\")))","v":" "},null,null,{"$f":"IF(Data!$G$2=1, \"\", IF(Data!$G$2=2, \"\", \"Rounding %\"))","v":""}]
[null,null,null,{"$f":"IF(Data!$G$2=1, \" \", IF(Data!$G$2=2, \"\", \"Round up\"))","v":" "}]
[null,null,null,{"$f":"IF(Data!$G$2=1, \" \", IF(Data!$G$2=2, \"\", \"Bid Schedule\"))","v":" "},null,null,null,{"$f":"IF(Data!$G$2<3,\"\",IF(H$9=\"each\",H$102,IF(H$9=\"LPSM\",\"LPSM\",IF(H$115=0,ROUND((H$102*(1+H$114)),0),CEILING(H$102*(1+H$114),H$115)))))","v":""}]
[null,null,null,{"$f":"IF(Data!$G$2=1, \" \", IF(Data!$G$2=2, \"\", \"Allowance\"))","v":" "},null,null,null,{"$f":"IF(Data!$G$2<3,\"\",IF(H$9=\"LPSM\",\"--\",H$116-H$102))","v":""}]

{"sheet":"Data","index":2,"n_rows":3,"n_cols":7,"rows_kept":3,"cut":false,"hidden":false,"merged":[]}
["Pay Item Number","Description","Unit","Num Items",null,"Sides","Schedules"]
[null,null,null,{"$f":"COUNTA(A:A)-1","v":0},null,"RT",1]
[null,null,null,null,null,"LT"]